Workbook

Sheet 貨物自動車運送事業者数の推移
A1: 貨物自動車運送事業者数の推移
B3: 年度別 | C3: 平成２９年度 | E3: 平成３０年度 | G3: 令和元年度 | I3: 令和２年度 | K3: 令和３年度
A4: 事業種別 | D4: 前年比 | F4: 前年比 | H4: 前年比 | J4: 前年比 | L4: 前年比
A5: 茨城 | C5: 3118 | E5: 3111 | F5: =IFERROR(E5/C5,0) -> 0.9977549711 | G5: 3116 | H5: =IFERROR(G5/E5,0) -> 1.0016072 | I5: 3125 | J5: =IFERROR(I5/G5,0) -> 1.002888318 | K5: 3134 | L5: =IFERROR(K5/I5,0) -> 1.00288
B6: 一般 | C6: 3117 | E6: 3110 | F6: =IFERROR(E6/C6,0) -> 0.9977542509 | G6: 3115 | H6: =IFERROR(G6/E6,0) -> 1.001607717 | I6: 3124 | J6: =IFERROR(I6/G6,0) -> 1.002889246 | K6: 3134 | L6: =IFERROR(K6/I6,0) -> 1.003201024
B7: 特積 | C7: 31 | E7: 31 | F7: 1 | G7: 30 | H7: 0.9677419355 | I7: 30 | J7: 1 | K7: 30 | L7: =IFERROR(K7/I7,0) -> 1
B8: 特定 | C8: 1 | E8: 1 | F8: 1 | G8: 1 | H8: 1 | I8: 1 | J8: 1 | K8: 0 | L8: 0
A9: 栃木 | C9: 1665 | E9: 1664 | F9: 0.9993993994 | G9: 1667 | H9: 1.001802885 | I9: 1666 | J9: 0.99940012 | K9: 1685 | L9: 1.011404562
B10: 一般 | C10: 1663 | E10: 1662 | F10: 0.9993986771 | G10: 1666 | H10: 1.002406739 | I10: 1665 | J10: 0.9993997599 | K10: 1684 | L10: 1.011411411
B11: 特積 | C11: 52 | E11: 26 | F11: 0.5 | G11: 26 | H11: 1 | I11: 26 | J11: 1 | K11: 26 | L11: 1
B12: 特定 | C12: 2 | E12: 2 | F12: 1 | G12: 1 | H12: 0.5 | I12: 1 | J12: 1 | K12: 1 | L12: 1
A13: 群馬 | C13: 1597 | E13: 1615 | F13: 1.011271133 | G13: 1640 | H13: 1.015479876 | I13: 1657 | J13: 1.010365854 | K13: 1681 | L13: 1.014484007
B14: 一般 | C14: 1596 | E14: 1614 | F14: 1.011278195 | G14: 1639 | H14: 1.015489467 | I14: 1656 | J14: 1.010372178 | K14: 1680 | L14: 1.014492754
B15: 特積 | C15: 31 | E15: 31 | F15: 1 | G15: 30 | H15: 0.9677419355 | I15: 30 | J15: 1 | K15: 30 | L15: 1
B16: 特定 | C16: 1 | E16: 1 | F16: 1 | G16: 1 | H16: 1 | I16: 1 | J16: 1 | K16: 1 | L16: 1
A17: 埼玉 | C17: 4178 | E17: 4196 | F17: 1.004308281 | G17: 5056 | H17: 1.204957102 | I17: 4902 | J17: 0.9695411392 | K17: 5320 | L17: 1.085271318
B18: 一般 | C18: 4174 | E18: 4192 | F18: 1.00431241 | G18: 5054 | H18: 1.205629771 | I18: 4900 | J18: 0.9695290859 | K18: 5318 | L18: 1.085306122
B19: 特積 | C19: 84 | E19: 85 | F19: 1.011904762 | G19: 98 | H19: 1.152941176 | I19: 111 | J19: 1.132653061 | K19: 119 | L19: 1.072072072
B20: 特定 | C20: 4 | E20: 4 | F20: 1 | G20: 2 | H20: 0.5 | I20: 2 | J20: 1 | K20: 2 | L20: 1
A21: 千葉 | C21: 3849 | E21: 3897 | F21: 1.012470772 | G21: 3929 | H21: 1.008211445 | I21: 3953 | J21: 1.006108425 | K21: 4003 | L21: 1.012648621
B22: 一般 | C22: 3833 | E22: 3881 | F22: 1.012522828 | G22: 3913 | H22: 1.008245298 | I22: 3937 | J22: 1.006133401 | K22: 3987 | L22: 1.012700025
B23: 特積 | C23: 50 | E23: 50 | F23: 1 | G23: 50 | H23: 1 | I23: 50 | J23: 1 | K23: 50 | L23: 1
B24: 特定 | C24: 16 | E24: 16 | F24: 1 | G24: 16 | H24: 1 | I24: 16 | J24: 1 | K24: 16 | L24: 1
A25: 東京 | C25: 5912 | E25: 5838 | F25: 0.9874830853 | G25: 5858 | H25: 1.003425831 | I25: 5870 | J25: 1.002048481 | K25: 5869 | L25: 0.9998296422
B26: 一般 | C26: 5896 | E26: 5822 | F26: 0.987449118 | G26: 5843 | H26: 1.003607008 | I26: 5855 | J26: 1.00205374 | K26: 5854 | L26: 0.9998292058
B27: 特積 | C27: 101 | E27: 101 | F27: 1 | G27: 101 | H27: 1 | I27: 103 | J27: 1.01980198 | K27: 102 | L27: 0.9902912621
B28: 特定 | C28: 16 | E28: 16 | F28: 1 | G28: 15 | H28: 0.9375 | I28: 15 | J28: 1 | K28: 15 | L28: 1
A29: 神奈川 | C29: 3892 | E29: 3918 | F29: 1.00668037 | G29: 3953 | H29: 1.008933129 | I29: 3985 | J29: 1.008095118 | K29: 4042 | L29: 1.014303639
B30: 一般 | C30: 3886 | E30: 3912 | F30: 1.006690685 | G30: 3948 | H30: 1.009202454 | I30: 3980 | J30: 1.00810537 | K30: 4037 | L30: 1.014321608
B31: 特積 | C31: 71 | E31: 72 | F31: 1.014084507 | G31: 73 | H31: 1.013888889 | I31: 73 | J31: 1 | K31: 71 | L31: 0.9726027397
B32: 特定 | C32: 6 | E32: 6 | F32: 1 | G32: 5 | H32: 0.8333333333 | I32: 5 | J32: 1 | K32: 5 | L32: 1
A33: 山梨 | C33: 637 | E33: 637 | F33: 1 | G33: 611 | H33: 0.9591836735 | I33: 613 | J33: 1.003273322 | K33: 620 | L33: 1.01141925
B34: 一般 | C34: 637 | E34: 637 | F34: 1 | G34: 611 | H34: 0.9591836735 | I34: 613 | J34: 1.003273322 | K34: 620 | L34: 1.01141925
B35: 特積 | C35: 11 | E35: 11 | F35: 1 | G35: 10 | H35: 0.9090909091 | I35: 10 | J35: 1 | K35: 10 | L35: 1
B36: 特定 | C36: 0 | E36: 0 | F36: 0 | G36: 0 | H36: 0 | I36: 0 | J36: =IFERROR(I36/G36,0) -> 0 | K36: 0 | L36: =IFERROR(K36/I36,0) -> 0
A37: 合計 | C37: =SUM(C38,C40) -> 24848 | D37: =IFERROR(C37/A37,0) -> 0 | E37: =SUM(E38,E40) -> 24876 | F37: 1.001126851 | G37: =SUM(G38,G40) -> 25830 | H37: 1.038350217 | I37: =SUM(I38,I40) -> 25771 | J37: 0.9977158343 | K37: =SUM(K38,K40) -> 26354 | L37: =IFERROR(K37/I37,0) -> 1.022622327
B38: 一般 | C38: =C34+C10+C6+C22+C14+C18+C30+C26 -> 24802 | D38: =IFERROR(C38/A38,0) -> 0 | E38: =E34+E10+E6+E22+E14+E18+E30+E26 -> 24830 | F38: 1.001128941 | G38: =G34+G10+G6+G22+G14+G18+G30+G26 -> 25789 | H38: 1.038622634 | I38: =I34+I10+I6+I22+I14+I18+I30+I26 -> 25730 | J38: 0.9977122029 | K38: =K34+K10+K6+K22+K14+K18+K30+K26 -> 26314 | L38: =IFERROR(K38/I38,0) -> 1.022697241
B39: 特積 | C39: =C35+C11+C7+C23+C15+C19+C31+C27 -> 431 | D39: =IFERROR(C39/A39,0) -> 0 | E39: =E35+E11+E7+E23+E15+E19+E31+E27 -> 407 | F39: 0.9443155452 | G39: =G35+G11+G7+G23+G15+G19+G31+G27 -> 418 | H39: 1.027027027 | I39: =I35+I11+I7+I23+I15+I19+I31+I27 -> 433 | J39: 1.035885167 | K39: =K35+K11+K7+K23+K15+K19+K31+K27 -> 438 | L39: =IFERROR(K39/I39,0) -> 1.011547344
B40: 特定 | C40: =C36+C12+C8+C24+C16+C20+C32+C28 -> 46 | D40: =IFERROR(C40/A40,0) -> 0 | E40: =E36+E12+E8+E24+E16+E20+E32+E28 -> 46 | F40: 1 | G40: =G36+G12+G8+G24+G16+G20+G32+G28 -> 41 | H40: 0.8913043478 | I40: =I36+I12+I8+I24+I16+I20+I32+I28 -> 41 | J40: =IFERROR(I40/G40,0) -> 1 | K40: =K36+K12+K8+K24+K16+K20+K32+K28 -> 40 | L40: =IFERROR(K40/I40,0) -> 0.9756097561
A41: 注）「特積」欄は、「一般」欄の内数を示す。
